bitfinex/quotes_SOLUSD_20251126
["timestamp","ask_amount","ask_price","bid_price","bid_amount"]
[1764149416526,27.90091284,136.81,136.8,11.30994152]
[1764149416833,20.218864,136.81,136.8,11.30994152]
[1764149418432,28.57091284,136.81,136.8,11.30994152]
[1764149418617,20.218864,136.81,136.8,11.30994152]
[1764149418819,23.48933376,136.81,136.8,11.30994152]
[1764149419732,23.48933376,136.81,136.8,4.0]
[1764149420439,32.29927868,136.81,136.8,4.0]
[1764149420651,39.60868588,136.81,136.8,4.0]
[1764149423654,32.29927868,136.81,136.8,4.0]
[1764149424017,39.60868588,136.81,136.8,4.0]
[1764149426943,32.29927868,136.81,136.8,4.0]
[1764149427144,39.60868588,136.81,136.8,4.0]
[1764149430844,25.78880892,136.81,136.8,4.0]
[1764149431039,16.308864,136.81,136.8,4.0]
[1764149431245,19.548864,136.81,136.8,4.0]
[1764149431430,23.48933376,136.81,136.8,4.0]
[1764149431630,3.24,136.81,136.8,11.30994152]
[1764149431830,6.51046976,136.81,136.8,4.0]
[1764149432037,3.91,136.81,136.8,11.30994152]
[1764149432241,7.18046976,136.81,136.8,11.30994152]
[1764149433439,7.18046976,136.81,136.8,4.0]
[1764149434753,7.18046976,136.81,136.8,11.30994152]
[1764149434938,8.80994492,136.83,136.8,11.96994152]
[1764149435262,3.24,136.81,136.8,11.96994152]
[1764149435560,3.24,136.81,136.8,11.30994152]
[1764149435935,3.24,136.81,136.8,11.96994152]
[1764149436143,3.24,136.81,136.8,30.24479532]
[1764149436660,3.24,136.81,136.8,11.96994152]
[1764149436855,3.24,136.81,136.8,11.30994152]
[1764149440162,8.02591155,136.81,136.8,11.30994152]
[1764149440371,8.02591155,136.81,136.8,11.96994152]
[1764149442366,3.24,136.81,136.8,11.96994152]
[1764149442753,14.81334464,136.85,136.8,33.51526508]
[1764149442969,111.44929165,136.84,136.81,0.66]
[1764149443185,4.80929165,136.83,136.81,0.66]
[1764149443468,4.80929165,136.82,136.81,0.66]
[1764149443670,4.80929165,136.82,136.8,30.24479532]
[1764149443872,107.31,136.84,136.8,30.24479532]
[1764149444074,4.80875424,136.83,136.8,30.24479532]
[1764149444253,107.35,136.84,136.8,30.24479532]
[1764149444254,4.80875424,136.82,136.8,30.24479532]
[1764149444457,107.35,136.84,136.8,30.24479532]
[1764149444659,4.80825257,136.83,136.8,30.24479532]
[1764149444860,4.80825257,136.82,136.8,30.24479532]
[1764149445060,107.35,136.84,136.8,30.24479532]
[1764149445270,4.80812967,136.83,136.8,30.24479532]
[1764149445453,4.80812967,136.82,136.81,0.68]
[1764149447175,107.35,136.84,136.8,33.53526508]
[1764149447376,4.80777638,136.83,136.8,33.53526508]
[1764149447576,107.35,136.84,136.8,33.53526508]
[1764149447874,4.80713974,136.83,136.8,33.53526508]
[1764149448077,103.4,136.84,136.81,3.95046976]
[1764149448273,4.80725217,136.83,136.81,0.68]
[1764149448471,3.24,136.83,136.81,0.68]
[1764149448674,103.4,136.84,136.81,0.68]
[1764149448971,8.04790041,136.83,136.81,0.68]
[1764149449178,104.11,136.84,136.81,0.68]
[1764149449378,8.04835425,136.83,136.81,0.68]
[1764149449675,3.24,136.83,136.82,7.30887297]
[1764149449862,4.80749655,136.83,136.82,7.30887297]
[1764149450466,107.35,136.84,136.82,7.30887297]
[1764149452173,106.64,136.84,136.82,7.30887297]
[1764149452677,107.35,136.84,136.82,7.30887297]
[1764149453276,0.71,136.83,136.8,11.30990191]
[1764149453579,3.98046976,136.83,136.8,11.30990191]
[1764149453775,103.4,136.82,136.8,11.30990191]
[1764149453982,6.51046976,136.81,136.8,4.0]
[1764149454181,3.95,136.81,136.8,11.30994152]
[1764149455276,3.24,136.81,136.8,11.30994152]
[1764149455486,3.95,136.81,136.8,11.30994152]
[1764149455654,3.95,136.81,136.8,4.0]
[1764149455859,24.87510538,136.81,136.8,3.28]
[1764149456062,44.45443914,136.81,136.8,3.28]
[1764149457957,28.14557514,136.81,136.8,3.28]
[1764149463970,13.61569818,136.81,136.8,10.58994152]
[1764149464290,3.24,136.81,136.8,11.29994152]
[1764149464659,8.80994492,136.83,136.8,11.29994152]
[1764149464863,4.7963367,136.82,136.81,0.71]
[1764149465189,3.24,136.82,136.81,0.71]
[1764149465862,3.24,136.82,136.81,8.0194072]
[1764149470880,106.64,136.82,136.81,8.0194072]
[1764149473590,106.64,136.82,136.8,10.58973442]
[1764149473893,106.64,136.82,136.8,11.29973442]
[1764149474670,106.64,136.82,136.8,3.99]
[1764149474893,106.64,136.82,136.81,0.68]
[1764149476480,106.64,136.82,136.8,10.58990848]
[1764149476803,103.4,136.81,136.8,11.26990848]
[1764149477401,8.80994492,136.81,136.8,3.28]
[1764149477613,32.7039335,136.81,136.8,3.28]
[1764149477779,32.0039335,136.81,136.8,3.28]
[1764149479313,32.7039335,136.81,136.8,3.28]
[1764149479482,40.0133407,136.81,136.8,3.28]
[1764149483905,12.04994492,136.81,136.8,3.28]
[1764149485984,14.14228723,136.81,136.8,3.28]
[1764149486796,12.04994492,136.81,136.8,3.28]
[1764149489388,14.14228723,136.81,136.8,3.28]
[1764149490107,14.84228723,136.81,136.8,3.28]
[1764149490307,22.15169443,136.81,136.8,3.28]
[1764149490614,26.94672502,136.81,136.8,3.28]
[1764149492503,16.308864,136.78,136.58,34.9593517]
[1764149492697,1.99999999,136.54,136.42,7.33030347]
[1764149493003,4.7832188,136.53,136.51,0.68]
[1764149493223,1.99999999,136.54,136.51,0.68]
[1764149493505,4.93610304,136.54,136.51,0.68]
[1764149493707,2.93610305,136.54,136.51,0.68]
[1764149493903,8.80994492,136.58,136.51,0.68]
[1764149493904,3.3,136.55,136.51,0.68]
[1764149494103,3.3,136.56,136.51,0.68]
[1764149494300,1.99999999,136.56,136.52,9.41684842]
[1764149494702,1.99999999,136.56,136.53,0.68]
[1764149494908,1.99999999,136.57,136.53,0.68]
[1764149495107,1.99999999,136.56,136.53,0.68]
[1764149495416,1.99999999,136.57,136.53,0.68]
[1764149495589,1.99999999,136.56,136.53,0.68]
[1764149495784,1.99999999,136.57,136.53,0.68]
[1764149496024,6.73952761,136.56,136.53,0.68]
[1764149496322,1.99999999,136.57,136.53,0.68]
[1764149496609,6.73199785,136.56,136.51,18.40120631]
[1764149496784,2.09234231,136.58,136.51,16.308864]
[1764149496785,6.73199785,136.55,136.51,16.308864]
[1764149496989,4.73145831,136.54,136.51,16.308864]
[1764149497184,1.99999999,136.55,136.51,16.308864]
[1764149497491,4.7241687,136.54,136.51,16.308864]
[1764149497691,4.7241687,136.53,136.51,16.308864]
[1764149497911,1.99999999,136.57,136.52,27.72961156]
[1764149498216,4.72496792,136.56,136.53,2.09234231]
[1764149498419,4.72496792,136.55,136.54,7.32386113]
[1764149498805,4.72496792,136.55,136.54,8.00386113]
[1764149498986,1.99999999,136.57,136.54,8.00386113]
[1764149499190,4.71966461,136.56,136.55,0.68]
[1764149499416,1.99999999,136.57,136.55,0.68]
[1764149499618,4.71554012,136.56,136.55,0.68]
[1764149500397,1.99999999,136.57,136.55,8.00332478]
[1764149500598,1.99999999,136.57,136.56,0.68]
[1764149500798,4.71172594,136.57,136.56,0.68]
[1764149501124,1.99999999,136.61,136.56,23.90991408]
[1764149501321,4.71207306,136.6,136.56,23.90991408]
[1764149501526,1.99999999,136.61,136.57,0.68]
[1764149501831,4.70949901,136.6,136.57,0.68]
[1764149502028,1.99999999,136.61,136.57,0.68]
[1764149502207,1.99999999,136.61,136.57,8.90026124]
[1764149502523,1.99999999,136.61,136.59,7.32118017]
[1764149502717,4.71087489,136.6,136.59,7.32118017]
[1764149503201,4.71087489,136.6,136.59,8.00118017]
[1764149503710,6.92026123,136.67,136.59,31.22439184]
[1764149503916,1.99999999,136.67,136.6,8.90026124]
[1764149504219,6.92026123,136.67,136.61,4.92026124]
[1764149504527,1.99999999,136.7,136.63,4.92026124]
[1764149504712,6.92026123,136.7,136.64,3.97]
[1764149504914,1.99999999,136.71,136.65,4.92026124]
[1764149505111,1.99999999,136.71,136.65,5.59026124]
[1764149505112,6.92026123,136.71,136.65,5.59026124]
[1764149505313,6.92026123,136.71,136.66,0.67]
[1764149505625,1.99999999,136.7,136.66,0.67]
[1764149505922,1.99999999,136.71,136.66,0.67]
[1764149506102,1.99999999,136.7,136.66,0.67]
[1764149506696,1.99999999,136.7,136.67,25.60913147]
[1764149506896,1.99999999,136.7,136.68,0.67]
[1764149507108,6.92026123,136.71,136.68,0.67]
[1764149507307,6.92026123,136.71,136.68,3.97]
[1764149507636,4.92026124,136.71,136.68,3.97]
[1764149507819,6.92026123,136.71,136.69,0.67]
[1764149508021,1.99999999,136.7,136.69,0.67]
[1764149508238,6.92026123,136.71,136.69,0.67]
[1764149508422,6.92026123,136.72,136.69,0.67]
[1764149508732,4.92026124,136.72,136.7,7.31528895]
[1764149508940,6.92026123,136.72,136.7,7.31528895]
[1764149509117,4.92026124,136.72,136.7,7.98528895]
[1764149509313,6.92026123,136.72,136.7,7.98528895]
[1764149509628,6.92026123,136.72,136.71,0.67]
[1764149509928,6.92026123,136.72,136.7,7.31528895]
[1764149510235,1.99999999,136.7,136.69,7.31577391]
[1764149510632,1.99999999,136.71,136.69,7.98577391]
[1764149510813,6.92026123,136.72,136.7,0.67]
[1764149511536,6.92026123,136.73,136.7,0.67]
[1764149511923,4.92026124,136.72,136.7,0.67]
[1764149512438,1.99999999,136.7,136.69,7.31577391]
[1764149512625,4.92026124,136.71,136.69,11.28577391]
[1764149513033,4.92026124,136.71,136.69,10.61577391]
[1764149513225,4.92026124,136.71,136.7,0.67]
[1764149513429,6.92026123,136.72,136.7,0.67]
[1764149513721,8.03273057,136.75,136.7,0.67]
[1764149513722,1.99999999,136.75,136.7,7.984892]
[1764149514044,6.92026123,136.74,136.7,26.27311438]
[1764149514243,6.92026123,136.74,136.71,0.67]
[1764149515137,1.99999999,136.72,136.71,0.67]
[1764149515517,1.99999999,136.72,136.7,28.90311438]
[1764149515737,1.99999999,136.72,136.71,0.67]
[1764149516337,1.99999999,136.72,136.71,7.98475385]
[1764149516542,6.92026123,136.72,136.71,7.31475385]
[1764149517142,4.92026124,136.72,136.71,7.31475385]
[1764149517347,6.92026123,136.72,136.71,7.31475385]
[1764149519714,1.99999999,136.71,136.7,7.31511249]
[1764149519940,6.92026123,136.71,136.7,7.31511249]
[1764149521822,1.99999999,136.7,136.69,10.61562949]
[1764149523461,4.09611003,136.71,136.69,10.61562949]
[1764149523877,1.99999999,136.7,136.69,10.61562949]
[1764149524019,4.09611003,136.7,136.69,7.31562949]
[1764149524441,8.8193957,136.7,136.69,7.31562949]
[1764149524642,8.8193957,136.7,136.65,36.58947464]
[1764149524643,9.4893957,136.7,136.64,18.29205687]
[1764149524845,1.99999999,136.68,136.65,3.95]
[1764149525065,4.09611003,136.68,136.65,3.95]
[1764149525356,4.09611003,136.68,136.66,0.67]
[1764149525544,1.99999999,136.68,136.67,7.3168947]
[1764149525862,4.09611003,136.68,136.67,7.3168947]
[1764149527327,1.99999999,136.68,136.67,7.3168947]
[1764149528831,4.09611003,136.69,136.67,7.9868947]
[1764149529033,1.99999999,136.68,136.67,7.3168947]
[1764149529633,1.99999999,136.68,136.67,7.9868947]
[1764149530032,4.09611003,136.69,136.67,7.9868947]
[1764149530236,103.4,136.71,136.68,0.67]
[1764149530555,1.99999999,136.7,136.68,0.67]
[1764149530933,4.09611003,136.7,136.68,0.67]
[1764149531157,1.99999999,136.7,136.68,0.67]
[1764149531334,4.09611003,136.7,136.68,0.67]
[1764149531533,107.49611003,136.71,136.68,0.67]
[1764149532242,105.39999999,136.71,136.69,7.31582412]
[1764149532456,1.99999999,136.7,136.69,7.31582412]
[1764149532852,4.09611003,136.7,136.69,7.31582412]
[1764149533246,2.09611004,136.7,136.69,7.31582412]
[1764149533964,4.09611003,136.71,136.69,7.31582412]
[1764149534573,5.27513081,136.71,136.68,26.3065506]
[1764149534775,3.27513082,136.71,136.68,26.3065506]
[1764149534970,113.99274159,136.75,136.69,3.98]
[1764149534971,1.99999999,136.75,136.69,3.98]
[1764149535270,1.99999999,136.75,136.7,3.27513082]
[1764149535465,5.27513081,136.75,136.7,0.7]
[1764149535775,5.27513081,136.75,136.71,0.7]
[1764149535944,3.27513082,136.76,136.72,0.18583115]
[1764149536259,3.27513082,136.81,136.74,3.27513082]
[1764149536440,5.27513081,136.81,136.75,6.55513082]
[1764149536762,3.27513082,136.81,136.77,25.59040724]
[1764149536959,1.99999999,136.8,136.78,3.28]
[1764149537144,1.99999999,136.8,136.78,3.98]
[1764149537339,1.99999999,136.8,136.79,3.97513082]
[1764149537541,3.27513082,136.82,136.79,3.97513082]
[1764149537760,1.99999999,136.81,136.8,0.7]
[1764149537967,5.27513081,136.82,136.8,0.7]
[1764149538152,3.27513082,136.82,136.8,0.7]
[1764149538352,3.27513082,136.82,136.79,3.27513082]
[1764149538548,3.27513082,136.81,136.8,7.30994152]
[1764149538751,5.27513081,136.81,136.8,7.30994152]
[1764149539144,3.27513082,136.81,136.8,8.00994152]
[1764149539653,3.27513082,136.81,136.8,7.30994152]
[1764149540043,1.99999999,136.82,136.8,7.30994152]
[1764149540262,3.27513082,136.81,136.8,7.30994152]
[1764149541171,1.99999999,136.8,136.77,8.01154492]
[1764149541343,3.27513082,136.8,136.78,0.7]
[1764149541662,1.99999999,136.79,136.78,0.7]
[1764149541868,5.27513081,136.81,136.78,0.7]
[1764149542037,3.27513082,136.8,136.78,0.7]
[1764149543071,1.99999999,136.81,136.79,7.31047591]
[1764149543772,1.99999999,136.75,136.72,0.7]
[1764149543976,1.99999999,136.74,136.72,0.7]
[1764149544169,3.27513082,136.73,136.72,0.7]
[1764149544552,3.27513082,136.73,136.71,3.28]
[1764149544757,3.27513082,136.72,136.71,3.98]
[1764149544959,3.27513082,136.73,136.72,0.7]
[1764149546075,1.99999999,136.71,136.69,7.31572301]
[1764149546277,1.99999999,136.73,136.7,0.7]
[1764149546490,3.27513082,136.71,136.7,0.7]
[1764149546783,1.99999999,136.72,136.7,0.7]
[1764149548157,10.36218122,136.73,136.71,7.31475385]
[1764149548960,10.36218122,136.73,136.71,8.01475385]
[1764149549986,10.36218122,136.74,136.71,26.30163849]
[1764149550178,4.76703863,136.73,136.71,26.30163849]
[1764149550370,10.36218122,136.74,136.71,26.30163849]
[1764149550563,4.76779729,136.73,136.71,26.30163849]
[1764149550766,10.36218122,136.74,136.71,26.30163849]
[1764149550972,4.76779729,136.73,136.71,26.30163849]
[1764149551279,10.36218122,136.74,136.71,26.30163849]
[1764149551585,4.76815629,136.73,136.71,26.30163849]
[1764149551761,10.36218122,136.74,136.71,26.30163849]
[1764149551969,1.99999999,136.76,136.72,0.7]
[1764149552184,10.36218122,136.76,136.72,0.7]
[1764149552481,10.36218122,136.75,136.72,3.98]
[1764149553276,10.36218122,136.75,136.73,7.3136839]
[1764149554087,1.99999999,136.75,136.73,7.3136839]
[1764149554284,1.99999999,136.75,136.73,25.59789365]
[1764149554787,11.03218122,136.76,136.73,25.59789365]
[1764149555082,1.99999999,136.75,136.73,25.59789365]
[1764149556780,11.03218122,136.76,136.73,25.59789365]
[1764149556964,1.99999999,136.75,136.73,25.59789365]
[1764149558297,1.99999999,136.75,136.73,26.29789365]
[1764149558485,119.708864,136.8,136.73,7.3136839]
[1764149558486,11.03218122,136.74,136.73,7.3136839]
[1764149558665,1.99999999,136.73,136.72,7.31404814]
[1764149558866,11.03218122,136.73,136.72,7.31404814]
[1764149559987,1.99999999,136.7,136.69,7.31564176]
[1764149560161,8.36218123,136.7,136.69,7.31564176]
[1764149560373,10.36218122,136.7,136.69,7.31564176]
[1764149560582,10.36218122,136.7,136.68,7.31635937]
[1764149561090,11.03218122,136.7,136.68,7.31635937]
[1764149561276,10.36218122,136.69,136.68,7.31635937]
[1764149561686,11.03218122,136.69,136.68,7.31635937]
[1764149562017,1.99999999,136.66,136.62,0.7]
[1764149562170,10.36218122,136.66,136.62,0.7]
[1764149562499,1.99999999,136.64,136.62,0.7]
[1764149562695,1.99999999,136.67,136.63,7.31903681]
[1764149563084,1.99999999,136.67,136.64,0.7]
[1764149563490,11.03218122,136.66,136.63,25.61662884]
[1764149563796,1.99999999,136.66,136.63,26.31662884]
[1764149564001,10.36218122,136.66,136.63,26.31662884]
[1764149564299,11.07218122,136.67,136.63,26.31662884]
[1764149564598,1.99999999,136.66,136.63,26.31662884]
[1764149564897,1.99999999,136.66,136.63,18.29759203]
[1764149565094,1.99999999,136.66,136.64,0.68]
[1764149565399,9.07218123,136.67,136.63,18.97759203]
[1764149565586,1.99999999,136.66,136.63,18.97759203]
[1764149566099,1.99999999,136.71,136.63,18.29759203]
[1764149566298,8.36218123,136.68,136.64,0.68]
[1764149566610,5.27656681,136.68,136.64,0.68]
[1764149568381,5.27656681,136.68,136.65,25.61287961]
[1764149568795,5.27656681,136.68,136.65,26.29287961]
[1764149569001,5.98656681,136.68,136.65,26.29287961]
[1764149571085,1.99999999,136.68,136.65,25.61287961]
[1764149571289,1.99999999,136.64,136.6,0.68]
[1764149571607,1.99999999,136.63,136.6,0.68]
[1764149571777,1.99999999,136.61,136.59,8.00118017]
[1764149571981,1.99999999,136.61,136.6,0.68]
[1764149572176,1.99999999,136.62,136.6,0.68]
[1764149572480,1.99999999,136.61,136.6,0.68]
[1764149572904,5.27656681,136.62,136.6,8.00064421]
[1764149573108,1.99999999,136.61,136.6,8.00064421]
[1764149573607,1.99999999,136.61,136.6,7.32064421]
[1764149573788,5.27656681,136.61,136.6,7.32064421]
[1764149574114,1.99999999,136.6,136.59,7.32096997]
[1764149574281,5.27656681,136.6,136.59,7.32096997]
[1764149574894,1.99999999,136.59,136.58,0.1]
[1764149575691,1.99999999,136.61,136.58,0.78]
[1764149575885,1.99999999,136.62,136.58,0.78]
[1764149576897,1.99999999,136.62,136.59,25.6241306]
[1764149577385,1.99999999,136.62,136.59,26.3041306]
[1764149578409,1.99999999,136.62,136.6,0.68]
[1764149578797,1.99999999,136.63,136.61,7.32010833]
[1764149578997,1.99999999,136.62,136.61,7.32010833]
[1764149579215,1.99999999,136.62,136.58,3.38]
[1764149579514,5.27656681,136.59,136.58,0.1]
[1764149579906,5.98656681,136.59,136.58,0.1]
[1764149580397,14.79651173,136.59,136.58,0.1]
[1764149580796,22.1176919,136.59,136.58,0.1]
[1764149581610,5.27656681,136.53,136.49,0.68]
[1764149581802,1.99999999,136.52,136.49,0.68]
[1764149582004,3.28,136.54,136.5,3.27656682]
[1764149582005,1.99999999,136.54,136.5,3.27656682]
[1764149582198,1.99999999,136.54,136.49,0.68]
[1764149582517,1.99999999,136.54,136.5,8.38254622]
[1764149582890,1.99999999,136.54,136.52,7.32493407]
[1764149583089,1.99999999,136.54,136.52,25.63726925]
[1764149583325,2.66999999,136.53,136.46,0.1]
[1764149583611,1.99999999,136.51,136.47,0.67]
[1764149583812,5.27999999,136.53,136.48,8.38254622]
[1764149584201,1.99999999,136.51,136.49,0.67]
[1764149584396,1.99999999,136.49,136.46,26.4185379]
[1764149584714,1.99999999,136.49,136.46,25.7485379]
[1764149584910,1.99999999,136.47,136.46,18.42038692]
[1764149586219,1.99999999,136.48,136.46,18.42038692]
[1764149586516,2.66999999,136.49,136.46,18.42038692]
[1764149586690,2.66999999,136.49,136.46,19.09038692]
[1764149586894,2.66999999,136.49,136.46,18.42038692]
[1764149587113,0.67,136.49,136.46,18.42038692]
[1764149587316,2.66999999,136.49,136.46,18.42038692]
[1764149587514,1.99999999,136.47,136.46,18.42038692]
[1764149587716,23.63338407,136.53,136.46,18.42038692]
[1764149587717,1.99999999,136.49,136.46,18.42038692]
[1764149587905,10.38254621,136.5,136.46,18.42038692]
[1764149588106,10.38254621,136.5,136.46,19.09038692]
[1764149588107,11.05254621,136.5,136.46,19.09038692]
[1764149588302,11.05254621,136.49,136.46,0.1]
[1764149588618,1.99999999,136.48,136.46,0.1]
[1764149588915,1.99999999,136.49,136.46,25.74854169]
[1764149589121,1.99999999,136.5,136.46,25.74854169]
[1764149589296,1.99999999,136.5,136.47,9.05254622]
[1764149589619,1.99999999,136.52,136.47,0.67]
[1764149589914,1.99999999,136.51,136.48,0.67]
[1764149590298,1.99999999,136.53,136.48,9.05254622]
[1764149590802,1.99999999,136.53,136.49,0.67]
[1764149590999,10.38254621,136.53,136.5,25.64102563]
[1764149591205,9.05254622,136.53,136.5,25.64102563]
[1764149591398,1.99999999,136.54,136.51,9.05254622]
[1764149591630,10.38254621,136.58,136.53,8.38254622]
[1764149591797,1.99999999,136.58,136.52,0.67]
[1764149592307,11.05254621,136.59,136.54,8.38254622]
[1764149592509,1.99999999,136.58,136.53,8.38254622]
[1764149593001,1.99999999,136.58,136.54,26.30351397]
[1764149593396,8.38254622,136.57,136.54,25.63351397]
[1764149593611,10.38254621,136.56,136.54,25.63351397]
[1764149594294,11.03254621,136.56,136.54,25.63351397]
[1764149594495,6.92403088,136.55,136.54,25.63351397]
[1764149595323,1.99999999,136.54,136.53,7.32439756]
[1764149595513,6.92403088,136.54,136.53,7.32439756]
[1764149595701,7.57403088,136.54,136.53,7.32439756]
[1764149596633,7.57403088,136.54,136.52,18.31197858]
[1764149596805,1.99999999,136.52,136.51,7.32547066]
[1764149597003,6.92403088,136.52,136.51,7.32547066]
[1764149597224,7.57403088,136.52,136.51,7.32547066]
[1764149597808,1.99999999,136.52,136.51,7.32547066]
[1764149598122,7.57403088,136.52,136.51,7.32547066]
[1764149598715,7.57403088,136.52,136.49,18.31590998]
[1764149598919,1.99999999,136.5,136.48,7.32708089]
[1764149599131,1.99999999,136.49,136.48,7.32708089]
[1764149601715,1.99999999,136.48,136.47,25.64636744]
[1764149603235,1.99999999,136.5,136.47,25.64636744]
[1764149603528,2.64999999,136.5,136.47,25.64636744]
[1764149604331,2.64999999,136.5,136.47,26.35636744]
[1764149605108,2.64999999,136.5,136.47,25.64636744]
[1764149605510,1.99999999,136.49,136.47,25.64636744]
[1764149605710,2.64999999,136.5,136.47,25.64636744]
[1764149606006,2.64999999,136.5,136.47,26.35636744]
[1764149606516,1.99999999,136.49,136.46,7.42805465]
[1764149606726,2.64999999,136.5,136.46,30.67247246]
[1764149607030,1.99999999,136.49,136.46,31.38247246]
[1764149607926,1.99999999,136.49,136.46,26.45844157]
[1764149609138,2.64999999,136.5,136.46,26.45844157]
[1764149609338,1.99999999,136.48,136.46,26.45844157]
[1764149610015,1.99999999,136.49,136.46,26.45844157]
[1764149611524,1.99999999,136.51,136.47,2.81237462]
[1764149611719,1.99999999,136.48,136.47,0.71]
[1764149612030,1.99999999,136.5,136.46,28.56081619]
[1764149612218,1.99999999,136.5,136.47,2.10237462]
[1764149612534,1.99999999,136.5,136.47,2.81237462]
[1764149612739,2.64999999,136.51,136.47,2.81237462]
[1764149613345,1.99999999,136.5,136.47,2.81237462]
[1764149613539,1.99999999,136.5,136.48,7.32708089]
[1764149613841,1.99999999,136.5,136.48,25.64478311]
[1764149614144,2.64999999,136.51,136.48,26.35478311]
[1764149614648,2.64999999,136.51,136.48,25.64478311]
[1764149615016,1.99999999,136.49,136.48,25.64478311]
[1764149615728,1.99999999,136.5,136.48,19.02770222]
[1764149615932,1.99999999,136.49,136.48,18.31770222]
[1764149617252,1.99999999,136.5,136.48,18.31770222]
[1764149617622,1.99999999,136.5,136.48,25.64478311]
[1764149618733,1.99999999,136.49,136.48,25.64478311]
[1764149619445,2.64999999,136.49,136.48,25.64478311]
[1764149619833,1.99999999,136.49,136.48,18.31770222]
[1764149620138,2.64999999,136.49,136.48,18.31770222]
[1764149620333,2.64999999,136.49,136.46,4.09]
[1764149620334,1.99999999,136.47,136.46,0.1]
[1764149620535,11.69550377,136.47,136.46,0.1]
[1764149620737,12.34550377,136.47,136.46,7.42815477]
[1764149621133,7.41906603,136.47,136.46,7.42815477]
[1764149621353,11.69550377,136.47,136.46,7.42815477]
[1764149621553,12.34550377,136.47,136.46,7.42815477]
[1764149622559,12.34550377,136.47,136.46,0.1]
[1764149629450,7.57643773,136.47,136.46,0.1]
[1764149630156,1.99999999,136.5,136.46,5.74643774]
[1764149630560,1.99999999,136.48,136.47,0.72]
[1764149630866,1.99999999,136.49,136.47,0.72]
[1764149631852,1.99999999,136.48,136.46,0.1]
[1764149632244,1.99999999,136.48,136.46,8.14815477]
[1764149632440,1.99999999,136.47,136.46,8.14815477]
[1764149632640,1.99999999,136.47,136.46,7.42815477]
[1764149632844,2.66999999,136.47,136.46,7.42815477]
[1764149633050,7.59643773,136.47,136.46,0.1]
[1764149634537,4.77379592,136.47,136.46,0.1]
[1764149636338,2.66999999,136.47,136.46,0.1]
[1764149636542,4.77379592,136.47,136.46,0.1]
[1764149636955,1.99999999,136.47,136.46,0.1]
[1764149637863,1.99999999,136.47,136.46,7.42815477]
[1764149640255,1.99999999,136.47,136.46,0.1]
[1764149640562,1.99999999,136.49,136.46,0.82]
[1764149640761,1.99999999,136.48,136.46,0.82]
[1764149641344,1.99999999,136.48,136.46,0.1]
[1764149641544,1.99999999,136.48,136.46,0.82]
[1764149642067,1.99999999,136.47,136.46,0.1]
[1764149642267,1.99999999,136.48,136.47,7.32761779]
[1764149642566,1.99999999,136.5,136.47,7.32761779]
[1764149642779,1.99999999,136.48,136.47,26.36666226]
[1764149643841,1.99999999,136.51,136.47,31.73045819]
[1764149644046,1.99999999,136.51,136.48,0.72]
[1764149644446,1.99999999,136.51,136.49,7.32654406]
[1764149644862,1.99999999,136.51,136.5,0.72]
[1764149645968,1.99999999,136.51,136.49,25.64290423]
[1764149646179,1.99999999,136.51,136.4,42.16835555]
[1764149646180,1.99999999,136.46,136.45,0.1]
[1764149646349,7.36379592,136.46,136.45,0.1]
[1764149646747,1.99999999,136.46,136.45,0.1]
[1764149646954,16.308864,136.49,136.45,0.1]
[1764149646955,1.99999999,136.49,136.45,0.82]
[1764149647382,4.10379592,136.49,136.45,0.82]
[1764149647882,1.99999999,136.49,136.45,0.82]
[1764149648401,4.10379592,136.49,136.46,25.64854169]
[1764149648770,4.10379592,136.5,136.47,0.72]
[1764149649069,1.99999999,136.48,136.47,0.72]
[1764149649367,4.10379592,136.49,136.47,0.72]
[1764149649791,1.99999999,136.48,136.47,0.72]
[1764149649975,4.10379592,136.49,136.47,0.72]
[1764149651060,4.10379592,136.49,136.48,7.32708089]
[1764149651594,4.10379592,136.49,136.47,8.04748267]
[1764149652075,1.99999999,136.48,136.47,8.04748267]
[1764149652276,4.10379592,136.49,136.48,0.72]
[1764149652684,4.10379592,136.49,136.48,8.04708089]
[1764149653575,1.99999999,136.49,136.48,8.04708089]
[1764149654499,1.99999999,136.5,136.48,8.04708089]
[1764149654703,1.99999999,136.5,136.48,25.64478311]
[1764149654883,4.10379592,136.51,136.49,0.69]
[1764149655089,1.99999999,136.5,136.49,0.69]
[1764149655685,1.99999999,136.5,136.48,25.64478311]
[1764149655902,1.99999999,136.5,136.48,26.33478311]